Cogmind - Beta 17 @@@ ROGUE MODE // 2026.06.29 @ 01:04:22 Player: rz Result: Destroyed by D-53 Grenadier with Mini Grenade Launcher Performance ------------- Evolutions (0) 0 Regions Visited (2) 400 Robots Destroyed (31) 155 Value Destroyed (607) 607 Prototype IDs (1) 20 Alien Tech Used (0) 0 Bonus (0) 0 TOTAL SCORE: 1182 Bonus ------- None Cogmind --------- Core Integrity 0/250 Matter 295/300 Energy 100/100 System Corruption 7% Temperature Cool (77) Movement Walking (190) Ox1 Location -10/Mines Parts ------- > --- POWER (1) -------- (None) > --- PROPULSION (2) --- Aluminum Leg Aluminum Leg > --- UTILITY (2) ------ Large Storage Unit Signal Interpreter > --- WEAPON (2) ------- Improved Medium Laser Improved Medium Laser > --- INVENTORY (15) --- Ion Engine Light Ion Engine Aluminum Leg Scrap Suit Heat Sink Sensor Array Small Laser Hammer Peak State ------------ > --- POWER ------------ Light Nuclear Core > --- PROPULSION ------- Light Treads Light Treads > --- UTILITY ---------- Large Storage Unit Signal Interpreter > --- WEAPON ----------- Improved Medium Laser Improved Medium Laser > --- INVENTORY -------- Ion Engine Light Ion Engine Aluminum Leg Aluminum Leg Aluminum Leg Scrap Suit Heat Sink Sensor Array Small Laser Improved Medium Laser Hammer [Rating: 15] Favorites ----------- Power Light Nuclear Core Engine Ion Engine Power Core Light Nuclear Core Propulsion Light Treads Treads Light Treads Leg Aluminum Leg Utility Large Storage Unit Device Heat Sink Storage Large Storage Unit Processor Signal Interpreter Protection Light Armor Plating Weapon Improved Medium Laser Energy Gun Improved Medium Laser Ballistic Gun Assault Rifle Launcher Grenade Launcher Impact Weapon Hammer Build | -11 -10 -10 ------- Run | Yrd Mat Min Slots Evolved . | . . . Power . | . . . Propulsion . | . . . Utility . | . . . Weapon . | . . . Parts Attached 21 | 6 7 8 Power 3 | 1 1 1 Engine 1 | 1 . . Core 2 | . 1 1 Reactor . | . . . Propulsion 5 | 2 . 3 Treads 3 | 2 . 1 Leg 2 | . . 2 Wheel . | . . . Hover . | . . . Flight . | . . . Utility 6 | 1 2 3 Device 1 | . . 1 Storage 2 | 1 1 . Processor 2 | . 1 1 Hackware . | . . . Protection 1 | . . 1 Artifact . | . . . Weapon 7 | 2 4 1 Energy Gun 3 | . 2 1 Energy Cannon . | . . . Ballistic Gun 2 | 2 . . Ballistic Cannon . | . . . Launcher 1 | . 1 . Special Weapon . | . . . Impact Weapon 1 | . 1 . Slashing Weapon . | . . . Piercing Weapon . | . . . Special Melee Weapon . | . . . Unidentified Prototypes 1 | . 1 . Parts Lost 8 | . . 8 Power 2 | . . 2 Propulsion 3 | . . 3 Utility 1 | . . 1 Weapon 2 | . . 2 Highest Loss Streak 4 | . . 4 To Critical Strikes 2 | . . 2 Average Backups 6 | . 4 11 Power 1 | . . 2 Propulsion 1 | . . 2 Utility 1 | . 1 3 Weapon 2 | . 1 3 Tool/Special . | . . . Unused Backups 6 | . 1 5 Power 1 | . . 1 Propulsion 1 | . . 1 Utility 2 | . . 2 Weapon 2 | . 1 1 Tool/Special . | . . . Average Slot Usage (%) 95 | . 94 97 Engine 5 | . 8 . Core 8 | . 4 13 Treads 24 | . 28 19 Leg 2 | . . 6 Device 1 | . . 3 Storage 14 | . 14 14 Processor 9 | . 9 9 Energy Gun 16 | . 9 27 Ballistic Gun 8 | . 14 . Launcher 2 | . 3 . Peak Build Rating 15 | 6 14 15 Average Rating 10 | 5 9 13 On Entrance 6 | . 6 14 Avg Prop Armor Cover (%) . | . . . Naked Turns . | . . . Heaviest Build 33 | 13 33 32 Greatest Support 40 | 40 40 40 Greatest Overweight (x) 1 | . . 1 Average Overweight (x) . | . . . Largest Inventory Capacity 15 | 8 15 15 Average Capacity 14 | 7 14 15 Most Carried 15 | 1 10 15 Average Carried 6 | . 4 11 Final Capacity 15 | 8 15 15 Final Carried 10 | . 10 9 Class Distribution -------------------- 100% | Mutant Dominant Class ---------------- Mutant | -10/Materials Mutant | -10/Mines Resources | -11 -10 -10 ----------- Run | Yrd Mat Min Matter Collected 782 | 303 334 145 Remotely . | . . . Salvage Created 939 | 214 479 246 Parts 67 | 18 38 11 Haulers Intercepted 1 | . 1 . Recyclers Shooed 3 | 1 2 . Parts Field Recycled . | . . . Retrieved Matter . | . . . Parts Self-Destructed . | . . . Prevented . | . . . Parts Restored . | . . . Kills | -11 -10 -10 ------- Run | Yrd Mat Min Combat Hostiles Destroyed 36 | . 12 24 Guns 19 | . 7 12 AOE 17 | . 5 12 Classes Destroyed 8 | 3 4 1 Worker 3 | 2 1 . Tunneler 4 | 4 . . Hauler 1 | . 1 . Recycler 2 | 1 1 . Operator 1 | . 1 . Swarmer 9 | . 3 6 Grunt 11 | . 9 2 Assembled 16 | . . 16 Best Kill Streak 16 | 4 4 16 Combat Bots Only 16 | . 4 16 Max Kills in Single Turn 5 | 1 1 5 Gunslinging 1 | . . 1 Exploded 5 | . 1 5 Melee . | . . . Uniques/NPCs Destroyed . | . . . Combat | -11 -10 -10 -------- Run | Yrd Mat Min Hostile Shots Fired 125 | . 41 84 Missed 38 | . 13 25 Hits 87 | . 28 59 Melee 4 | . . 4 Projectile 83 | . 28 55 AOE 5 | . . 5 Critical Strikes 6 | . . 6 Damage Taken 1235 | . 303 932 Core 250 | . 69 181 Absorbed by Shields . | . . . Core Remaining (%) 100 | 100 . . Volleys Fired 87 | 17 47 23 Largest 2 | 2 2 2 Hottest 112 | 40 112 112 Shots Fired 166 | 34 87 45 Gun 154 | 34 79 41 Cannon . | . . . Launcher 12 | . 8 4 Special . | . . . Kinetic 91 | 34 57 . Thermal 63 | . 22 41 Explosive 12 | . 8 4 Electromagnetic . | . . . Robot Hit Streak 10 | 4 7 10 Robot Miss Streak 5 | 3 5 2 Penetration Max . | . . . Secondary Targets 6 | . 3 3 Max Gunslinging Chain 1 | . 1 1 Shots Hit Robots 83 | 16 39 28 Core Hits 80 | 10 28 42 Critical Kills . | . . . Critical Parts Destroyed . | . . . Critical Strikes 6 | . 1 5 Burn 6 | . 1 5 Melee Attacks 2 | . 2 . Impact 2 | . 2 . Slashing . | . . . Piercing . | . . . Sneak Attacks . | . . . Combat Hostiles . | . . . Follow-up Attacks . | . . . Damage Inflicted 2334 | 212 822 1300 Guns 1254 | 212 544 498 Cannons . | . . . Explosions 1080 | . 278 802 Melee . | . . . Ramming . | . . . Kinetic 518 | 212 306 . Thermal 736 | . 238 498 Explosive 1080 | . 278 802 Electromagnetic . | . . . Impact . | . . . Slashing . | . . . Piercing . | . . . Highest Corruption 7 | . . 7 Average Corruption 6 | . . 6 Corruption Purged . | . . . Corruption Blocked . | . . . Effects 14 | . . 14 Message Errors 2 | . . 2 Matter Fused 4 | . . 4 Heat Flow Errors 2 | . . 2 Energy Discharges 1 | . . 1 Data Loss (minor) 1 | . . 1 Data Loss (major) 1 | . . 1 Misfires 1 | . . 1 Weapon Failures 2 | . . 2 Overload Shots . | . . . Overflow Damage 12 | . . 12 Projectiles . | . . . Explosions 12 | . . 12 Melee . | . . . Knockbacks . | . . . Impact . | . . . Kinetic . | . . . Secondary . | . . . Self-Inflicted Damage 39 | . . 39 Shots 1 | . . 1 Rammed . | . . . Targets Rammed . | . . . Kicked . | . . . Crushed . | . . . Highest Temperature 285 | . 285 285 Average Temperature 101 | . 99 103 Received Heat Transfer 195 | . 138 57 Siege Activations . | . . . Martial Activations . | . . . Shielding Activations . | . . . Robots Disrupted . | . . . Combat Hostiles . | . . . Robots Corrupted . | . . . Combat Hostiles . | . . . Parts Fried . | . . . Impact Corruptions . | . . . Robots Melted . | . . . Combat Hostiles . | . . . Parts Melted 5 | . 1 4 Heat Transferred 2035 | . 592 1443 Parts Sabotaged . | . . . Parts Stolen . | . . . Parts Stripped . | . . . Power Chain Reactions . | . . . Alert | -11 -10 -10 ------- Run | Yrd Mat Min Maximum Alert Level . | . . . Low Security (%) 100 | 100 100 100 Level 1 . | . . . Level 2 . | . . . Level 3 . | . . . Level 4 . | . . . Level 5 . | . . . High Security . | . . . Max Security . | . . . Peak Influence 178 | 10 178 95 Initial 45 | . 3 45 Average 56 | 1 82 33 Influence Increases 659 | 35 407 217 Destroy 0b10 Robot/C 400 | . 240 160 Destroy 0b10 Robot/NC 55 | 35 20 . Destroy Leader 102 | . 72 30 Disable Machine 45 | . 45 . Destroy Structure 57 | . 30 27 Influence Decreases 659 | 30 294 335 Entered New Map 75 | . 2 73 Time Decay 514 | 30 292 192 Lost Part 70 | . . 70 Squads Dispatched 3 | . 3 . Investigation . | . . . Extermination . | . . . Reinforcement 3 | . 3 . Assault . | . . . Garrison . | . . . Intercept . | . . . Searches Triggered . | . . . Construction Impeded . | . . . Haulers Reinforced . | . . . Active Scanning Responses . | . . . Cargo Convoy Interrupts . | . . . Stealth | -11 -10 -10 --------- Run | Yrd Mat Min Distress Signals 4 | . 3 1 Communications Jammed . | . . . Distress Signals . | . . . Times Spotted 48 | . 21 27 Peak Tracking Total 17 | . 5 17 Tactical Retreats . | . . . Traps | -11 -10 -10 ------- Run | Yrd Mat Min Traps Triggered 1 | . 1 . Indirectly . | . . . Trap Hack Attempts . | . . . Triggered . | . . . Disarmed . | . . . Reprogrammed . | . . . Reused . | . . . Traps Extracted . | . . . Installed . | . . . Triggered . | . . . Machines | -11 -10 -10 ---------- Run | Yrd Mat Min Machines Disabled 3 | . 3 . Max in Single Turn 1 | . 1 . Machines Repaired . | . . . Machines Dismantled . | . . . Machines Sabotaged . | . . . Overloaded Fab Kills . | . . . Hacking | -11 -10 -10 --------- Run | Yrd Mat Min Machines Accessed 1 | . 1 . Terminals . | . . . Fabricators . | . . . Repair Stations . | . . . Recycling Units 1 | . 1 . Scanalyzers . | . . . Garrison Access . | . . . Total Hacks 1 | . 1 . Successful 1 | . 1 . Failed . | . . . Catastrophic . | . . . Database Lockouts . | . . . Manual . | . . . Terminals . | . . . Fabricators . | . . . Repair Stations . | . . . Recycling Units 1 | . 1 . Scanalyzers . | . . . Garrison Access . | . . . Terminal Hacks . | . . . Fabricator Hacks . | . . . Repair Station Hacks . | . . . Recycling Unit Hacks 1 | . 1 . Retrieve Components 1 | . 1 . Scanalyzer . | . . . Garrison Access Hacks . | . . . Unauthorized Hacks . | . . . Terminals . | . . . Fabricators . | . . . Repair Stations . | . . . Recycling Units . | . . . Scanalyzers . | . . . Garrison Access . | . . . Data Cores Recovered . | . . . Used . | . . . Hacking Detections . | . . . Full Trace Events . | . . . Feedback Events . | . . . Feedback Blocked . | . . . Robot Schematics Acquired . | . . . Robots Built . | . . . Authchips . | . . . Time . | . . . Total Robot Build Rating . | . . . Part Schematics Acquired . | . . . Parts Built . | . . . Authchips . | . . . Time . | . . . Total Part Build Rating . | . . . Part Studies Acquired . | . . . Parts Repaired . | . . . Time . | . . . Parts Recycled . | . . . Recycled Matter . | . . . Retrieved Matter . | . . . Retrieved Components 3 | . 3 . Parts Scanalyzed . | . . . Part Schematics Acquired . | . . . Parts Damaged . | . . . Bothacking | -11 -10 -10 ------------ Run | Yrd Mat Min Used RIF Installer . | . . . Robots Hacked . | . . . Non-combat . | . . . Combat . | . . . Robot Hacks Applied . | . . . Relay Couplers Released . | . . . Fabnet Peak Effective % . | . . . Robots Rewired . | . . . Allies Hacked . | . . . Hacks Repelled . | . . . Allies | -11 -10 -10 -------- Run | Yrd Mat Min Total Allies . | . . . Largest Group . | . . . Highest-Rated Group . | . . . Highest-Rated Ally . | . . . Total Orders . | . . . Ally Attacks . | . . . Total Damage . | . . . Kills . | . . . Allies Corrupted . | . . . Allies Melted . | . . . Intel | -11 -10 -10 ------- Run | Yrd Mat Min Active Infowar (turns) . | . . . Robot Analysis Total . | . . . Derelict Logs Recovered 1 | . . 1 Drone Launches . | . . . Drone Recoveries . | . . . Exploration | -11 -10 -10 ------------- Run | Yrd Mat Min Turns Passed 1612 | 156 873 583 Spaces Moved 794 | 64 443 287 Core 2 | 2 . . Treads 724 | 62 443 219 Legs 68 | . . 68 Wheels . | . . . Hover . | . . . Flight . | . . . Fastest Speed 50 | 50 160 160 Average Speed 162 | 156 160 167 Slowest Speed 240 | 160 160 240 Overloaded Moves . | . . . Propulsion Burnouts . | . . . Robots Hopped . | . . . Potential Cave-ins . | . . . Cave-ins Triggered . | . . . Exploration Rate (%) 56 | 4 85 79 Regions Visited 2 Branch Regions 1 Pre-discovered Areas 1 | . . 1 Known Exits Taken 1 | . 1 . Unknown Exits Taken 1 | 1 . . Scrap Searched 3 | . . 3 Spaces Dug . | . . . Terrain Destroyed 80 | . 43 37 Melee . | . . . Projectile . | . . . AOE 80 | . 43 37 Terrain Rammed . | . . . Walls Destroyed . | . . . Machines Disabled . | . . . Actions | -11 -10 -10 --------- Run | Yrd Mat Min Total 948 | 87 519 342 Wait 14 | . . 14 Move 792 | 63 442 287 Hop . | . . . Pick Up 20 | 1 13 6 Fast Attach 10 | 5 4 1 Attach 10 | 1 1 8 Detach 1 | . 1 . Swap 7 | . 5 2 Drop 5 | . 4 1 Fire 87 | 17 47 23 Melee 2 | . 2 . Ram . | . . . Kick . | . . . Crush . | . . . Escape Stasis . | . . . Rewire . | . . . Trap . | . . . Miscellaneous . | . . . Route ------- -11/Scrapyard -10/Materials (discovered 3 exits: *Mat x2 / *Min) -10/Mines (discovered 2 exits: *Mat x2) History --------- Turn | Location | Event 7 | -11/Scrapyard | Discovered new exit (range 16) 157 | -11/Scrapyard | Entered Materials 308 | -10/Materials | Build established: Mutant 319 | -10/Materials | Discovered new exit (range 16) 699 | -10/Materials | Discovered new exit (range 15) 889 | -10/Materials | Discovered new exit (range 11) 907 | -10/Materials | Identified exit to Mines 1030 | -10/Materials | Entered Mines 1151 | -10/Mines | Assembled infested the area 1174 | -10/Mines | Core integrity fell below 50% 1193 | -10/Mines | Core integrity fell below 20% 1221 | -10/Mines | Lost 4 parts (1p1n1u1w) 1223 | -10/Mines | Destroyed 16 combat bots 1314 | -10/Mines | Discovered new exit (range 12) 1333 | -10/Mines | Learned location of Zion (-6) 1342 | -10/Mines | Identified exit to Materials 1355 | -10/Mines | Found a Scrap Suit stashed away for nefarious purposes 1358 | -10/Mines | Found Scrap Suit 1410 | -10/Mines | Discovered exit to Materials (range 8) 1613 | -10/Mines | Destroyed by D-53 Grenadier with Mini Grenade Launcher Last Messages --------------- failed to cycle. 01472_ S-10 Pest destroyed. 01475_ S-10 Pest suffers critical hit (Burn). 01475_ Lgt. Assault Rifle melted. 01475_ Flight Unit melted. 01475_ Lgt. Ion Engine melted. 01475_ S-10 Pest destroyed. 01478_ Acquired 20 matter. 01483_ System corrupted: FCS attempts to trigger Imp. Medium Laser. 01483_ System corrupted: Imp. Medium Laser misfires. 01503_ SLVFMYHH:=KZ X&F E4ZLWQX 01518_ System corrupted: Heat flow error (+267). 01609_ Imp. Medium Laser destroyed. 01612_ U-05 Engineer lays Concrete. 01613_ The unstable cave ceiling collapses. 01613_ U-05 Engineer lays Concrete. 01613_ Lgt. Nuclear Core destroyed. Map ----- +----------------------------------------------------+ | ##%### ##?? #?# #? | | % #?## ##???###?# #? | | #??## #????????#### ####? | | # ##???# #??????# #???? | | ####????## ##### #??????# #???? | | ?????????## ##????????????# #???? | | ??????????### ##?????????????# #???? | | ????????????####??????????????# #???? | | ??????????????????????????????# #???? | | ?????????????????????????????? #???? | | ?????????????????????????????? ##???? | | ?????????????????????????????? ?????? | | ???????????????????#?????????? ?????? | | ???????????????????# ????????? ?????? | | ???????????????#???# ??###??????????? | | ???????????????? ### ### ??????????? | | ????????????????? ??????????? | | ?????????????????? d ??????????? | | ???????????????????# k #??????????? | | ???????????????????# d #??????????? | | ????????###????????# ######?????? | | ???????? #???????# ##????? | | ????????? ??????## k #????? | | ????????? #????## ##???? | | ?????????? ##??# #???? | | ?????????? ### @ #???? | | ?????????? u ##???? | | ??????????# ##????? | | #??????????# ##### ##?????? | | #??????????# #???### ##??????? | | #??????????# = #??????## ##???????? | | ############=%#?????????# #????????? | | %![%! !#?????????# #????????? | | ############ #?????????# #????????? | | ???????????# #?????##### #????????? | | ???????????# #?????# #????????? | | #???????####% ####??# #????????? | | #???????# #??# #####????????? | | ######### #### #????????????? | | #????????????? | | ##### < #######????????????? | | ???## ## #??????????????????? | | ???# ## #??????????????????? | | ???# ###########??????????????????? | | #### ###????????????????????????????? | | ## #??????????????????????????????? | | ##?????????????????????????????? | | #????#########????????????????? | | #?#### [%% #????????????????? | | ##?# = """ #????????????????? | +----------------------------------------------------+ Best States ------------- Heat Dissipation 35 Energy Generation 14 Energy Capacity 250 Matter Stores 300 Matter Capacity 300 Sight Range 16 Terrain Scan Density 10 Armor Coverage 150 Evasion (%) 40 Recoil Reduction 2 Item Schematics ----------------- None Robot Schematics ------------------ None Fabricated ------------ Nothing Repaired ---------- Nothing Studied --------- None Alien Tech Used ----------------- None Achievements -------------- Exterminator Challenges ------------ None Game ------ Seed ModifiedDeuteriumChaingun Manual? 0 Play Time 00:14:34 Cumulative 67.3 hours Start 2026.06.28 @ 14:42:49 End 2026.06.29 @ 01:04:22 Sessions 3 Manual Loads 0 Difficulty Rogue Special Mode None Game No. 77 Rogue 23 Adventurer 54 Explorer 0 Win Type - Total 1 Types 1/0/0/0/0/0/0/0/0/0 Lore% 32 Gallery% 40 Achievement% 38 Wizard Run 0 Options --------- Layout 1 ASCII 0 Keyboard 0 Movement Mouse Keybinds 1 Fullscreen 1 Font 24/Terminus Map View 50x35 Zoom Use 0% Tactical HUD 1 Map Filters NONE Filters NONE Steam 1 RUN: 097974a4-c2ed-411f-92ca-180034db5586